[Event "Titled Tuesday Blitz July 18 Late 2023"]
[White "Medarde Santiago, Luis Marcos"]
[Black "Karacsonyi, Gellert"]
[WhiteFideId "2263076"]
[BlackFideId "764620"]
[WhiteElo "2619"]
[BlackElo "2812"]
[Result "0-1"]
[Round "6"]
[TimeControl "180+2"]
[Date "2023.07.18"]
[WhiteClock "0:00:08"]
[BlackClock "0:00:19"]
[Board "33"]

1. e4 {[%clk 0:02:57]}  c5 {[%clk 0:02:59]} 2. Nf3 {[%clk 0:02:49]}  Nc6 {[%clk 0:02:59]} 3. d4 {[%clk 0:02:48]}  cxd4 {[%clk 0:03:00]} 4. Nxd4 {[%clk 0:02:49]}  g6 {[%clk 0:03:01]} 5. Nc3 {[%clk 0:02:48]}  Bg7 {[%clk 0:03:01]} 6. Be3 {[%clk 0:02:49]}  Nf6 {[%clk 0:03:02]} 7. Bc4 {[%clk 0:02:50]}  O-O {[%clk 0:03:02]} 8. Bb3 {[%clk 0:02:50]}  Re8 {[%clk 0:03:03]} 9. h4 {[%clk 0:02:50]}  h5 {[%clk 0:02:56]} 10. f3 {[%clk 0:02:23]}  e6 {[%clk 0:02:56]} 11. Qd2 {[%clk 0:02:16]}  d5 {[%clk 0:02:55]} 12. Nxc6 {[%clk 0:02:12]}  bxc6 {[%clk 0:02:55]} 13. O-O-O {[%clk 0:02:12]}  Qc7 {[%clk 0:02:42]} 14. g4 {[%clk 0:02:07]}  dxe4 {[%clk 0:02:40]} 15. Nxe4 {[%clk 0:02:05]}  Nxe4 {[%clk 0:02:36]} 16. fxe4 {[%clk 0:02:06]}  Qe5 {[%clk 0:02:36]} 17. c3 {[%clk 0:02:07]}  hxg4 {[%clk 0:02:29]} 18. h5 {[%clk 0:02:06]}  Qxe4 {[%clk 0:01:55]} 19. Bc2 {[%clk 0:02:06]}  Qd5 {[%clk 0:01:51]} 20. Qf2 {[%clk 0:01:58]}  Qf3 {[%clk 0:01:50]} 21. Qxf3 {[%clk 0:01:51]}  gxf3 {[%clk 0:01:51]} 22. hxg6 {[%clk 0:01:52]}  f5 {[%clk 0:01:49]} 23. Ba4 {[%clk 0:01:50]}  f4 {[%clk 0:01:23]} 24. Bxf4 {[%clk 0:01:44]}  Ba6 {[%clk 0:01:08]} 25. Bxc6 {[%clk 0:01:23]}  f2 {[%clk 0:01:08]} 26. Be3 {[%clk 0:01:22]}  f1=Q {[%clk 0:00:58]} 27. Rdxf1 {[%clk 0:01:22]}  Bxf1 {[%clk 0:00:59]} 28. Rxf1 {[%clk 0:01:22]}  Rf8 {[%clk 0:01:00]} 29. Rf7 {[%clk 0:01:08]}  Rad8 {[%clk 0:00:50]} 30. Bd7 {[%clk 0:01:00]}  e5 {[%clk 0:00:39]} 31. Be6 {[%clk 0:00:52]}  Rxf7 {[%clk 0:00:37]} 32. gxf7+ {[%clk 0:00:50]}  Kh7 {[%clk 0:00:38]} 33. Bxa7 {[%clk 0:00:48]}  Kg6 {[%clk 0:00:35]} 34. b4 {[%clk 0:00:43]}  Bh6+ {[%clk 0:00:35]} 35. Kc2 {[%clk 0:00:42]}  e4 {[%clk 0:00:35]} 36. Bb6 {[%clk 0:00:31]}  Rd6 {[%clk 0:00:31]} 37. Bc5 {[%clk 0:00:23]}  Rxe6 {[%clk 0:00:22]} 38. f8=Q {[%clk 0:00:24]}  Bxf8 {[%clk 0:00:22]} 39. Bxf8 {[%clk 0:00:24]}  e3 {[%clk 0:00:23]} 40. Kd1 {[%clk 0:00:21]}  e2+ {[%clk 0:00:24]} 41. Ke1 {[%clk 0:00:21]}  Kf5 {[%clk 0:00:25]} 42. b5 {[%clk 0:00:21]}  Kf4 {[%clk 0:00:25]} 43. c4 {[%clk 0:00:14]}  Ke3 {[%clk 0:00:24]} 44. Bc5+ {[%clk 0:00:13]}  Kd3 {[%clk 0:00:24]} 45. b6 {[%clk 0:00:10]}  Rf6 {[%clk 0:00:21]} 46. Bf2 {[%clk 0:00:10]}  Rxf2 {[%clk 0:00:18]} 47. Kxf2 {[%clk 0:00:09]}  Kd2 {[%clk 0:00:19]} 48. b7 {[%clk 0:00:10]}  e1=Q+ {[%clk 0:00:20]} 49. Kf3 {[%clk 0:00:08]}  Qh1+ {[%clk 0:00:19]} 0-1


[Site "https://www.chess.com"]

[Event "Titled Tuesday Blitz July 18 Late 2023"]
[White "Krishnan, Varun"]
[Black "Oro, Faustino"]
[WhiteFideId "5054508"]
[BlackFideId "20000197"]
[WhiteElo "2590"]
[BlackElo "2780"]
[Result "1-0"]
[Round "6"]
[TimeControl "180+2"]
[Date "2023.07.18"]
[WhiteClock "0:00:24"]
[BlackClock "0:00:16"]
[Board "35"]

1. a3 {[%clk 0:03:00]}  d5 {[%clk 0:02:55]} 2. d4 {[%clk 0:02:59]}  Nf6 {[%clk 0:02:54]} 3. Nf3 {[%clk 0:02:58]}  Bf5 {[%clk 0:02:52]} 4. c4 {[%clk 0:02:55]}  e6 {[%clk 0:02:52]} 5. e3 {[%clk 0:02:51]}  c6 {[%clk 0:02:51]} 6. Nc3 {[%clk 0:02:51]}  h6 {[%clk 0:02:47]} 7. b4 {[%clk 0:02:50]}  Bd6 {[%clk 0:02:47]} 8. Bb2 {[%clk 0:02:48]}  O-O {[%clk 0:02:47]} 9. Bd3 {[%clk 0:02:46]}  Ne4 {[%clk 0:02:39]} 10. c5 {[%clk 0:02:30]}  Bc7 {[%clk 0:02:38]} 11. Qc2 {[%clk 0:02:30]}  Nxc3 {[%clk 0:02:26]} 12. Bxc3 {[%clk 0:02:31]}  Bxd3 {[%clk 0:02:26]} 13. Qxd3 {[%clk 0:02:25]}  Nd7 {[%clk 0:02:26]} 14. O-O {[%clk 0:02:17]}  b5 {[%clk 0:02:15]} 15. e4 {[%clk 0:02:11]}  Nf6 {[%clk 0:02:07]} 16. e5 {[%clk 0:02:10]}  Ne4 {[%clk 0:02:07]} 17. Bb2 {[%clk 0:02:04]}  f6 {[%clk 0:01:58]} 18. Nd2 {[%clk 0:01:50]}  Nxd2 {[%clk 0:01:52]} 19. Qxd2 {[%clk 0:01:49]}  fxe5 {[%clk 0:01:53]} 20. dxe5 {[%clk 0:01:48]}  Qe7 {[%clk 0:01:50]} 21. Rfe1 {[%clk 0:01:33]}  Rf5 {[%clk 0:01:41]} 22. a4 {[%clk 0:01:26]}  a6 {[%clk 0:01:11]} 23. axb5 {[%clk 0:01:23]}  cxb5 {[%clk 0:01:12]} 24. Bd4 {[%clk 0:01:23]}  Qh4 {[%clk 0:01:00]} 25. Ra3 {[%clk 0:01:20]}  Qe7 {[%clk 0:00:50]} 26. Qa2 {[%clk 0:01:09]}  Rf4 {[%clk 0:00:44]} 27. Rd1 {[%clk 0:01:04]}  Raf8 {[%clk 0:00:42]} 28. Rxa6 {[%clk 0:00:57]}  Qh4 {[%clk 0:00:41]} 29. g3 {[%clk 0:00:52]}  Qg4 {[%clk 0:00:41]} 30. Qd2 {[%clk 0:00:43]}  Re4 {[%clk 0:00:38]} 31. Ra7 {[%clk 0:00:27]}  Bxe5 {[%clk 0:00:35]} 32. Bxe5 {[%clk 0:00:26]}  Rxe5 {[%clk 0:00:36]} 33. c6 {[%clk 0:00:26]}  Re2 {[%clk 0:00:34]} 34. Qd4 {[%clk 0:00:26]}  Re1+ {[%clk 0:00:29]} 35. Kg2 {[%clk 0:00:25]}  Qf3+ {[%clk 0:00:18]} 36. Kh3 {[%clk 0:00:25]}  Qf5+ {[%clk 0:00:18]} 37. Kg2 {[%clk 0:00:24]}  Re4 {[%clk 0:00:16]} 38. Qxg7# {[%clk 0:00:24]} 1-0


[Site "https://www.chess.com"]

[Event "Titled Tuesday Blitz July 18 Late 2023"]
[White "Amburgy, Ryan"]
[Black "Matinian, Nikita"]
[WhiteFideId "30924820"]
[BlackFideId "24129100"]
[WhiteElo "2673"]
[BlackElo "2739"]
[Result "1-0"]
[Round "6"]
[TimeControl "180+2"]
[Date "2023.07.18"]
[WhiteClock "0:00:53"]
[BlackClock "0:00:02"]
[Board "39"]

1. Nf3 {[%clk 0:03:00]}  g6 {[%clk 0:02:49]} 2. d4 {[%clk 0:02:59]}  Bg7 {[%clk 0:02:49]} 3. e4 {[%clk 0:02:59]}  d6 {[%clk 0:02:50]} 4. c4 {[%clk 0:02:58]}  Bg4 {[%clk 0:02:49]} 5. Be3 {[%clk 0:02:56]}  Nc6 {[%clk 0:02:46]} 6. Be2 {[%clk 0:02:55]}  Bxf3 {[%clk 0:02:45]} 7. Bxf3 {[%clk 0:02:56]}  e5 {[%clk 0:02:46]} 8. d5 {[%clk 0:02:53]}  Nd4 {[%clk 0:02:46]} 9. Nc3 {[%clk 0:02:53]}  c5 {[%clk 0:02:43]} 10. dxc6 {[%clk 0:02:52]}  bxc6 {[%clk 0:02:44]} 11. O-O {[%clk 0:02:49]}  Ne7 {[%clk 0:02:43]} 12. g3 {[%clk 0:02:47]}  O-O {[%clk 0:02:42]} 13. Bg2 {[%clk 0:02:47]}  Rb8 {[%clk 0:02:43]} 14. b3 {[%clk 0:02:46]}  c5 {[%clk 0:02:35]} 15. Nd5 {[%clk 0:02:43]}  Nxd5 {[%clk 0:02:31]} 16. cxd5 {[%clk 0:02:44]}  f5 {[%clk 0:02:31]} 17. exf5 {[%clk 0:02:41]}  gxf5 {[%clk 0:02:32]} 18. Bxd4 {[%clk 0:02:41]}  cxd4 {[%clk 0:02:31]} 19. Rc1 {[%clk 0:02:40]}  e4 {[%clk 0:02:23]} 20. Rc6 {[%clk 0:02:40]}  d3 {[%clk 0:02:14]} 21. f3 {[%clk 0:02:40]}  Qg5 {[%clk 0:01:56]} 22. Rxd6 {[%clk 0:02:16]}  Rbd8 {[%clk 0:01:38]} 23. Rxd8 {[%clk 0:02:13]}  Rxd8 {[%clk 0:01:37]} 24. fxe4 {[%clk 0:02:09]}  fxe4 {[%clk 0:01:37]} 25. Rf4 {[%clk 0:02:10]}  Qxd5 {[%clk 0:01:21]} 26. Bxe4 {[%clk 0:02:07]}  Qc5+ {[%clk 0:01:15]} 27. Kg2 {[%clk 0:02:08]}  d2 {[%clk 0:01:15]} 28. Rf2 {[%clk 0:01:58]}  Qe3 {[%clk 0:00:51]} 29. Bc2 {[%clk 0:01:48]}  Qc3 {[%clk 0:00:31]} 30. Be4 {[%clk 0:01:26]}  h6 {[%clk 0:00:28]} 31. Rf3 {[%clk 0:01:16]}  Qc1 {[%clk 0:00:26]} 32. Rf1 {[%clk 0:01:15]}  Qb2 {[%clk 0:00:21]} 33. Kh3 {[%clk 0:01:13]}  Kh8 {[%clk 0:00:21]} 34. Qg4 {[%clk 0:00:57]}  Qd4 {[%clk 0:00:07]} 35. Qg6 {[%clk 0:00:54]}  Qd7+ {[%clk 0:00:07]} 36. g4 {[%clk 0:00:54]}  Bf8 {[%clk 0:00:03]} 37. Rf7 {[%clk 0:00:54]}  d1=Q {[%clk 0:00:02]} 38. Qh7# {[%clk 0:00:53]} 1-0


[Site "https://www.chess.com"]

[Event "Titled Tuesday Blitz July 18 Late 2023"]
[White "Mikhailovsky, Vladimir"]
[Black "Berezin, Viktor"]
[WhiteFideId "34105414"]
[BlackFideId "14107872"]
[WhiteElo "2730"]
[BlackElo "2521"]
[Result "1-0"]
[Round "6"]
[TimeControl "180+2"]
[Date "2023.07.18"]
[WhiteClock "0:00:05"]
[BlackClock "0:00:01"]
[Board "40"]

1. d4 {[%clk 0:02:58]}  Nf6 {[%clk 0:02:57]} 2. c4 {[%clk 0:02:59]}  g6 {[%clk 0:02:53]} 3. Nc3 {[%clk 0:02:56]}  Bg7 {[%clk 0:02:54]} 4. e4 {[%clk 0:02:56]}  O-O {[%clk 0:02:54]} 5. Nf3 {[%clk 0:02:55]}  d6 {[%clk 0:02:54]} 6. Be2 {[%clk 0:02:55]}  e5 {[%clk 0:02:53]} 7. Be3 {[%clk 0:02:56]}  Na6 {[%clk 0:02:51]} 8. O-O {[%clk 0:02:55]}  Ng4 {[%clk 0:02:50]} 9. Bg5 {[%clk 0:02:55]}  f6 {[%clk 0:02:46]} 10. Bc1 {[%clk 0:02:55]}  Nh6 {[%clk 0:02:45]} 11. Rb1 {[%clk 0:02:48]}  c6 {[%clk 0:02:32]} 12. b4 {[%clk 0:02:47]}  Nf7 {[%clk 0:02:33]} 13. b5 {[%clk 0:02:43]}  Nc7 {[%clk 0:02:30]} 14. a4 {[%clk 0:02:26]}  Qe7 {[%clk 0:02:21]} 15. a5 {[%clk 0:02:20]}  f5 {[%clk 0:02:02]} 16. Re1 {[%clk 0:02:14]}  f4 {[%clk 0:01:52]} 17. Ba3 {[%clk 0:01:51]}  g5 {[%clk 0:01:37]} 18. dxe5 {[%clk 0:01:50]}  Bxe5 {[%clk 0:01:29]} 19. Nxe5 {[%clk 0:01:45]}  Qxe5 {[%clk 0:01:28]} 20. Bb2 {[%clk 0:01:35]}  Qe7 {[%clk 0:01:27]} 21. a6 {[%clk 0:00:56]}  Ne5 {[%clk 0:01:24]} 22. axb7 {[%clk 0:00:56]}  Bxb7 {[%clk 0:01:22]} 23. bxc6 {[%clk 0:00:56]}  Bxc6 {[%clk 0:01:21]} 24. Nd5 {[%clk 0:00:57]}  Nxd5 {[%clk 0:01:21]} 25. exd5 {[%clk 0:00:52]}  Bd7 {[%clk 0:01:18]} 26. Bd3 {[%clk 0:00:48]}  f3 {[%clk 0:01:10]} 27. g3 {[%clk 0:00:17]}  Rae8 {[%clk 0:01:09]} 28. c5 {[%clk 0:00:15]}  Qf7 {[%clk 0:01:08]} 29. cxd6 {[%clk 0:00:11]}  Ng4 {[%clk 0:01:05]} 30. Bf1 {[%clk 0:00:07]}  Qh5 {[%clk 0:00:59]} 31. h3 {[%clk 0:00:08]}  Rxe1 {[%clk 0:00:27]} 32. Qxe1 {[%clk 0:00:08]}  Nf6 {[%clk 0:00:24]} 33. Bxf6 {[%clk 0:00:08]}  Rxf6 {[%clk 0:00:25]} 34. Qe7 {[%clk 0:00:04]}  Rf7 {[%clk 0:00:23]} 35. Rb8+ {[%clk 0:00:04]}  Kg7 {[%clk 0:00:22]} 36. Qe5+ {[%clk 0:00:05]}  Rf6 {[%clk 0:00:19]} 37. Rf8 {[%clk 0:00:03]}  Kxf8 {[%clk 0:00:16]} 38. Qxf6+ {[%clk 0:00:03]}  Kg8 {[%clk 0:00:16]} 39. Qd8+ {[%clk 0:00:02]}  Qe8 {[%clk 0:00:15]} 40. Qxg5+ {[%clk 0:00:03]}  Kf7 {[%clk 0:00:11]} 41. Qf4+ {[%clk 0:00:03]}  Kg8 {[%clk 0:00:11]} 42. Qxf3 {[%clk 0:00:04]}  Qe5 {[%clk 0:00:11]} 43. Qa3 {[%clk 0:00:02]}  a6 {[%clk 0:00:10]} 44. Qxa6 {[%clk 0:00:02]}  Kf7 {[%clk 0:00:09]} 45. Qa8 {[%clk 0:00:02]}  Qxd6 {[%clk 0:00:08]} 46. Qd8 {[%clk 0:00:02]}  Qxd5 {[%clk 0:00:06]} 47. Qh4 {[%clk 0:00:01]}  Bf5 {[%clk 0:00:06]} 48. Qf4 {[%clk 0:00:02]}  Kf6 {[%clk 0:00:05]} 49. Bg2 {[%clk 0:00:02]}  Qd1+ {[%clk 0:00:05]} 50. Kh2 {[%clk 0:00:03]}  Kg6 {[%clk 0:00:06]} 51. g4 {[%clk 0:00:02]}  Bd3 {[%clk 0:00:06]} 52. Be4+ {[%clk 0:00:02]}  Bxe4 {[%clk 0:00:07]} 53. Qxe4+ {[%clk 0:00:03]}  Kg7 {[%clk 0:00:08]} 54. Kg3 {[%clk 0:00:03]}  Qb3+ {[%clk 0:00:07]} 55. Kh4 {[%clk 0:00:03]}  Qb2 {[%clk 0:00:06]} 56. Qe7+ {[%clk 0:00:02]}  Kg6 {[%clk 0:00:06]} 57. Qe4+ {[%clk 0:00:02]}  Kg7 {[%clk 0:00:06]} 58. Qf4 {[%clk 0:00:03]}  h6 {[%clk 0:00:06]} 59. Kg3 {[%clk 0:00:02]}  Qc3+ {[%clk 0:00:06]} 60. Kg2 {[%clk 0:00:02]}  Qb2 {[%clk 0:00:07]} 61. Qf3 {[%clk 0:00:03]}  Kg6 {[%clk 0:00:07]} 62. Qg3 {[%clk 0:00:03]}  h5 {[%clk 0:00:07]} 63. Qf3 {[%clk 0:00:04]}  hxg4 {[%clk 0:00:07]} 64. hxg4 {[%clk 0:00:04]}  Kg5 {[%clk 0:00:07]} 65. Qf5+ {[%clk 0:00:04]}  Kh6 {[%clk 0:00:08]} 66. g5+ {[%clk 0:00:04]}  Kg7 {[%clk 0:00:08]} 67. Kg3 {[%clk 0:00:03]}  Qc3+ {[%clk 0:00:08]} 68. f3 {[%clk 0:00:04]}  Qe1+ {[%clk 0:00:08]} 69. Kg4 {[%clk 0:00:04]}  Qg1+ {[%clk 0:00:09]} 70. Kh4 {[%clk 0:00:04]}  Qh2+ {[%clk 0:00:09]} 71. Qh3 {[%clk 0:00:04]}  Qf4+ {[%clk 0:00:08]} 72. Kh5 {[%clk 0:00:04]}  Qf7+ {[%clk 0:00:07]} 73. Kg4 {[%clk 0:00:05]}  Qe6+ {[%clk 0:00:07]} 74. Kg3 {[%clk 0:00:05]}  Qe1+ {[%clk 0:00:07]} 75. Kf4 {[%clk 0:00:03]}  Qd2+ {[%clk 0:00:06]} 76. Kg4 {[%clk 0:00:03]}  Qd7+ {[%clk 0:00:05]} 77. Kh4 {[%clk 0:00:04]}  Qd4+ {[%clk 0:00:04]} 78. Qg4 {[%clk 0:00:03]}  Qf2+ {[%clk 0:00:05]} 79. Qg3 {[%clk 0:00:04]}  Qd4+ {[%clk 0:00:04]} 80. f4 {[%clk 0:00:04]}  Kg6 {[%clk 0:00:04]} 81. Kg4 {[%clk 0:00:02]}  Qd7+ {[%clk 0:00:04]} 82. Kf3 {[%clk 0:00:02]}  Qd3+ {[%clk 0:00:05]} 83. Kg2 {[%clk 0:00:02]}  Qe2+ {[%clk 0:00:04]} 84. Qf2 {[%clk 0:00:03]}  Qg4+ {[%clk 0:00:04]} 85. Kh2 {[%clk 0:00:04]}  Kf5 {[%clk 0:00:03]} 86. Qg3 {[%clk 0:00:03]}  Qh5+ {[%clk 0:00:03]} 87. Qh3+ {[%clk 0:00:03]}  Kg6 {[%clk 0:00:01]} 88. Qxh5+ {[%clk 0:00:03]}  Kxh5 {[%clk 0:00:02]} 89. Kg3 {[%clk 0:00:04]}  Kg6 {[%clk 0:00:01]} 90. Kf3 {[%clk 0:00:05]} 1-0


[Site "https://www.chess.com"]

[Event "Titled Tuesday Blitz July 18 Late 2023"]
[White "Willy, Stephen"]
[Black "Richter, Paul"]
[WhiteFideId "30981468"]
[BlackFideId "2046350"]
[WhiteElo "2414"]
[BlackElo "2526"]
[Result "0-1"]
[Round "6"]
[TimeControl "180+2"]
[Date "2023.07.18"]
[WhiteClock "0:00:08"]
[BlackClock "0:00:10"]
[Board "42"]

1. e4 {[%clk 0:03:00]}  c5 {[%clk 0:02:59]} 2. Nf3 {[%clk 0:02:59]}  d6 {[%clk 0:02:59]} 3. b4 {[%clk 0:02:56]}  Nf6 {[%clk 0:02:55]} 4. bxc5 {[%clk 0:02:54]}  Nxe4 {[%clk 0:02:55]} 5. cxd6 {[%clk 0:02:52]}  Nxd6 {[%clk 0:02:56]} 6. Bb2 {[%clk 0:02:51]}  Nc6 {[%clk 0:02:55]} 7. Nc3 {[%clk 0:02:45]}  e5 {[%clk 0:02:51]} 8. Nb5 {[%clk 0:02:35]}  Qb6 {[%clk 0:02:22]} 9. Nxd6+ {[%clk 0:02:11]}  Bxd6 {[%clk 0:02:23]} 10. Rb1 {[%clk 0:02:11]}  Qa5 {[%clk 0:02:15]} 11. Bc4 {[%clk 0:02:11]}  O-O {[%clk 0:02:10]} 12. Ng5 {[%clk 0:02:07]}  Bf5 {[%clk 0:01:35]} 13. h4 {[%clk 0:01:47]}  Nd4 {[%clk 0:01:27]} 14. Bxd4 {[%clk 0:01:34]}  exd4 {[%clk 0:01:28]} 15. Rxb7 {[%clk 0:01:22]}  Rae8+ {[%clk 0:01:23]} 16. Kf1 {[%clk 0:01:21]}  Re7 {[%clk 0:01:18]} 17. Rxe7 {[%clk 0:01:16]}  Bxe7 {[%clk 0:01:19]} 18. Bb3 {[%clk 0:01:05]}  h6 {[%clk 0:00:54]} 19. Nf3 {[%clk 0:00:50]}  d3 {[%clk 0:00:45]} 20. c3 {[%clk 0:00:45]}  Bf6 {[%clk 0:00:39]} 21. Qe1 {[%clk 0:00:38]}  Qb5 {[%clk 0:00:32]} 22. Qe3 {[%clk 0:00:37]}  a5 {[%clk 0:00:28]} 23. Qf4 {[%clk 0:00:36]}  Re8 {[%clk 0:00:24]} 24. g4 {[%clk 0:00:19]}  Be4 {[%clk 0:00:17]} 25. Kg2 {[%clk 0:00:12]}  a4 {[%clk 0:00:16]} 26. Bd1 {[%clk 0:00:08]}  Qd5 {[%clk 0:00:15]} 27. Rh3 {[%clk 0:00:05]}  Re5 {[%clk 0:00:12]} 28. Kg1 {[%clk 0:00:05]}  Re6 {[%clk 0:00:11]} 29. Rg3 {[%clk 0:00:04]}  g5 {[%clk 0:00:10]} 30. hxg5 {[%clk 0:00:03]}  hxg5 {[%clk 0:00:11]} 31. Qe3 {[%clk 0:00:03]}  Kg7 {[%clk 0:00:08]} 32. Qa7 {[%clk 0:00:03]}  Bg6 {[%clk 0:00:07]} 33. Kg2 {[%clk 0:00:03]}  Re2 {[%clk 0:00:06]} 34. Bxe2 {[%clk 0:00:02]}  dxe2 {[%clk 0:00:07]} 35. Kh2 {[%clk 0:00:01]}  Qxf3 {[%clk 0:00:06]} 36. Rxf3 {[%clk 0:00:02]}  e1=Q {[%clk 0:00:07]} 37. Qe3 {[%clk 0:00:03]}  Qd1 {[%clk 0:00:06]} 38. d4 {[%clk 0:00:03]}  Qb1 {[%clk 0:00:06]} 39. Rxf6 {[%clk 0:00:03]}  Be4 {[%clk 0:00:05]} 40. Qxg5+ {[%clk 0:00:01]}  Kf8 {[%clk 0:00:05]} 41. Rd6 {[%clk 0:00:02]}  Qh1+ {[%clk 0:00:04]} 42. Kg3 {[%clk 0:00:02]}  Qf3+ {[%clk 0:00:04]} 43. Kh4 {[%clk 0:00:02]}  Qxf2+ {[%clk 0:00:05]} 44. Kh5 {[%clk 0:00:03]}  Qh2+ {[%clk 0:00:05]} 45. Qh4 {[%clk 0:00:04]}  Qxd6 {[%clk 0:00:05]} 46. Qg5 {[%clk 0:00:03]}  Qg6+ {[%clk 0:00:05]} 47. Qxg6 {[%clk 0:00:03]}  fxg6+ {[%clk 0:00:06]} 48. Kg5 {[%clk 0:00:04]}  Kf7 {[%clk 0:00:06]} 49. Kf4 {[%clk 0:00:04]}  Bd5 {[%clk 0:00:06]} 50. Ke5 {[%clk 0:00:05]}  Bxa2 {[%clk 0:00:06]} 51. d5 {[%clk 0:00:05]}  Bxd5 {[%clk 0:00:06]} 52. Kxd5 {[%clk 0:00:06]}  a3 {[%clk 0:00:06]} 53. c4 {[%clk 0:00:06]}  a2 {[%clk 0:00:07]} 54. c5 {[%clk 0:00:06]}  a1=Q {[%clk 0:00:08]} 55. c6 {[%clk 0:00:07]}  Qa8 {[%clk 0:00:06]} 56. Kd6 {[%clk 0:00:07]}  Qc8 {[%clk 0:00:07]} 57. c7 {[%clk 0:00:07]}  Qxg4 {[%clk 0:00:07]} 58. Kc6 {[%clk 0:00:07]}  Qc8 {[%clk 0:00:08]} 59. Kb6 {[%clk 0:00:07]}  g5 {[%clk 0:00:09]} 60. Kc6 {[%clk 0:00:08]}  g4 {[%clk 0:00:09]} 61. Kd5 {[%clk 0:00:09]}  g3 {[%clk 0:00:10]} 62. Kd6 {[%clk 0:00:10]}  g2 {[%clk 0:00:10]} 63. Kc5 {[%clk 0:00:08]}  g1=Q+ {[%clk 0:00:10]} 0-1


[Site "https://www.chess.com"]

[Event "Titled Tuesday Blitz July 18 Late 2023"]
[White "Delorme, Axel"]
[Black "Nguyen, Ngoc Truong Son"]
[WhiteFideId "632023"]
[BlackFideId "12401110"]
[WhiteElo "2454"]
[BlackElo "2858"]
[Result "0-1"]
[Round "6"]
[TimeControl "180+2"]
[Date "2023.07.18"]
[WhiteClock "0:00:00"]
[BlackClock "0:01:22"]
[Board "43"]

1. e4 {[%clk 0:03:00]}  c5 {[%clk 0:03:00]} 2. Nf3 {[%clk 0:02:59]}  d6 {[%clk 0:03:01]} 3. Bb5+ {[%clk 0:02:58]}  Bd7 {[%clk 0:03:01]} 4. Bxd7+ {[%clk 0:02:59]}  Qxd7 {[%clk 0:03:02]} 5. O-O {[%clk 0:02:58]}  Nc6 {[%clk 0:03:01]} 6. c3 {[%clk 0:02:58]}  e5 {[%clk 0:03:01]} 7. d4 {[%clk 0:02:58]}  cxd4 {[%clk 0:03:01]} 8. cxd4 {[%clk 0:02:59]}  Nf6 {[%clk 0:03:02]} 9. Nc3 {[%clk 0:02:57]}  Be7 {[%clk 0:03:01]} 10. Bg5 {[%clk 0:02:52]}  O-O {[%clk 0:02:56]} 11. dxe5 {[%clk 0:02:45]}  dxe5 {[%clk 0:02:56]} 12. Bxf6 {[%clk 0:02:37]}  Qxd1 {[%clk 0:02:55]} 13. Rfxd1 {[%clk 0:02:34]}  Bxf6 {[%clk 0:02:56]} 14. Rd7 {[%clk 0:02:32]}  Rab8 {[%clk 0:02:55]} 15. Rad1 {[%clk 0:02:25]}  Rfd8 {[%clk 0:02:55]} 16. Nd5 {[%clk 0:02:12]}  Rxd7 {[%clk 0:02:54]} 17. Nxf6+ {[%clk 0:02:12]}  gxf6 {[%clk 0:02:55]} 18. Rxd7 {[%clk 0:02:12]}  Rd8 {[%clk 0:02:55]} 19. Rxd8+ {[%clk 0:02:09]}  Nxd8 {[%clk 0:02:56]} 20. Kf1 {[%clk 0:02:09]}  Ne6 {[%clk 0:02:55]} 21. g3 {[%clk 0:02:01]}  Nc5 {[%clk 0:02:55]} 22. Nd2 {[%clk 0:02:01]}  Kf8 {[%clk 0:02:53]} 23. Ke2 {[%clk 0:02:00]}  Ke7 {[%clk 0:02:54]} 24. Ke3 {[%clk 0:01:55]}  Ke6 {[%clk 0:02:54]} 25. g4 {[%clk 0:01:49]}  Na4 {[%clk 0:02:52]} 26. b3 {[%clk 0:01:47]}  Nc3 {[%clk 0:02:52]} 27. a4 {[%clk 0:01:46]}  Kd6 {[%clk 0:02:49]} 28. Kd3 {[%clk 0:01:41]}  Na2 {[%clk 0:02:39]} 29. Kc4 {[%clk 0:01:36]}  a6 {[%clk 0:02:32]} 30. Nf1 {[%clk 0:01:22]}  b5+ {[%clk 0:02:26]} 31. axb5 {[%clk 0:01:07]}  axb5+ {[%clk 0:02:27]} 32. Kxb5 {[%clk 0:01:07]}  Nc3+ {[%clk 0:02:27]} 33. Ka6 {[%clk 0:01:05]}  Nxe4 {[%clk 0:02:28]} 34. b4 {[%clk 0:01:04]}  Nxf2 {[%clk 0:02:27]} 35. b5 {[%clk 0:01:03]}  Nd3 {[%clk 0:02:22]} 36. b6 {[%clk 0:01:01]}  Nc5+ {[%clk 0:01:44]} 37. Ka7 {[%clk 0:00:58]}  e4 {[%clk 0:01:37]} 38. b7 {[%clk 0:00:38]}  Nxb7 {[%clk 0:01:37]} 39. Kxb7 {[%clk 0:00:39]}  Ke5 {[%clk 0:01:35]} 40. Kc6 {[%clk 0:00:23]}  Kf4 {[%clk 0:01:35]} 41. Kd5 {[%clk 0:00:16]}  e3 {[%clk 0:01:35]} 42. Ng3 {[%clk 0:00:16]}  Kf3 {[%clk 0:01:30]} 43. Kd4 {[%clk 0:00:06]}  e2 {[%clk 0:01:26]} 44. Nxe2 {[%clk 0:00:06]}  Kxe2 {[%clk 0:01:27]} 45. Ke4 {[%clk 0:00:07]}  Kf2 {[%clk 0:01:27]} 46. Kf4 {[%clk 0:00:05]}  Kg2 {[%clk 0:01:25]} 47. h4 {[%clk 0:00:06]}  Kh3 {[%clk 0:01:26]} 48. h5 {[%clk 0:00:05]}  h6 {[%clk 0:01:21]} 49. Kf5 {[%clk 0:00:05]}  Kg3 {[%clk 0:01:21]} 50. Kxf6 {[%clk 0:00:03]}  Kxg4 {[%clk 0:01:21]} 51. Kxf7 {[%clk 0:00:02]}  Kxh5 {[%clk 0:01:21]} 52. Kf6 {[%clk 0:00:00]}  Kg4 {[%clk 0:01:22]} 0-1


[Site "https://www.chess.com"]